Cogmind - Beta 14 @@@ ROGUE MODE // 2024.11.11 @ 00:14:13 Player: naththebg Result: Destroyed by P-80 Master with Gamma Rifle Performance ------------- Evolutions (7) 3500 Regions Visited (15) 3000 Robots Destroyed (138) 690 Value Destroyed (4383) 4383 Prototype IDs (45) 900 Alien Tech Used (3) 600 Bonus (691) 691 TOTAL SCORE: 13764 Bonus ------- High Alert Combat Kills 212 Follower Combat Kills 179 Met Zhirov 300 Cogmind --------- Core Integrity 0/1300 Matter 250/300 Energy 100/100 System Corruption 9% Temperature Cool (0) Movement Core (50) Location -3/Testing Parts ------- > --- POWER (2) -------- (None) > --- PROPULSION (6) --- (None) > --- UTILITY (8) ------ Enhanced Optical Array Spectral Analyzer Experimental Target Analyzer Hacking Suite Improved System Shield Improved System Shield > --- WEAPON (5) ------- (None) > --- INVENTORY (5) ---- Micro Antimatter Reactor Combat Antigrav System Force Lance Force Lance Enhanced Force Lance Peak State ------------ > --- POWER ------------ Light Antimatter Reactor Micro Antimatter Reactor > --- PROPULSION ------- Gravmag Array Gyrokinetic Inverter Cooled Gravmag System Cooled Gravmag System Improved Antigrav System > --- UTILITY ---------- Experimental Energy Well Improved Actuator Array Improved Force Booster Hacking Suite Improved Hacking Suite Improved System Shield Advanced System Shield Ghost Barrier > --- WEAPON ----------- Gravity Flail Axe Force Lance Force Lance Enhanced Force Lance > --- INVENTORY -------- Enhanced Optical Array Improved System Shield Transdimensional Reconstructor Potential Cannon [Rating: 138] Favorites ----------- Power Improved Deuterium Engine Engine Improved Deuterium Engine Power Core Nuclear Core Reactor Micro Antimatter Reactor Propulsion Cooled Gravmag System Wheel Wheel Hover Unit Cooled Gravmag System Flight Unit Flight Unit Utility Small Storage Unit Device Heat Sink Storage Small Storage Unit Processor Improved Signal Interpreter Hackware Hacking Suite Protection Tower Shield Weapon Impact Mace Energy Gun Medium Laser Energy Cannon Potential Cannon Ballistic Gun Subdweller Machine Gun Launcher Subdweller Shrapnel Launcher Special Weapon Plasma Cutter Impact Weapon Impact Mace Slashing Weapon Axe Piercing Weapon Force Lance Build | -11 -10 -10 -10 -8 -7 -7 -7 -5 -5 -5 -5 -4 -4 -3 -3 ------- Run | Yrd Mat Min Sub Mat Fac Sto Rec Fac Upp Upp Zhi Pro Fac Res Tes Slots Evolved 14 | . . . . 4 2 . . 4 . . . . 2 2 . Power 1 | . . . . 1 . . . . . . . . . . . Propulsion 4 | . . . . 1 2 . . . . . . . . 1 . Utility 6 | . . . . 2 . . . 2 . . . . 1 1 . Weapon 3 | . . . . . . . . 2 . . . . 1 . . Parts Attached 191 | 7 1 4 8 7 21 19 14 43 2 3 10 1 5 15 31 Power 27 | 1 . 1 1 1 1 3 2 8 1 2 . . 2 1 3 Engine 12 | 1 . 1 1 . . 1 2 5 . . . . 1 . . Core 11 | . . . . 1 1 2 . 3 1 2 . . . . 1 Reactor 4 | . . . . . . . . . . . . . 1 1 2 Propulsion 65 | 2 . 2 2 1 12 10 6 15 1 . 5 . . 4 5 Treads . | . . . . . . . . . . . . . . . . Leg . | . . . . . . . . . . . . . . . . Wheel 4 | 2 . 2 . . . . . . . . . . . . . Hover 37 | . . . . . 6 5 6 7 . . 5 . . 4 4 Flight 24 | . . . 2 1 6 5 . 8 1 . . . . . 1 Utility 55 | 2 1 . . 3 5 . 3 12 . . 5 1 2 8 13 Device 23 | 1 1 . . 1 1 . . 7 . . 2 1 1 3 5 Storage 5 | 1 . . . . 1 . 1 . . . 1 . . . 1 Processor 13 | . . . . 2 2 . 2 4 . . . . . . 3 Hackware 8 | . . . . . . . . 1 . . 1 . 1 1 4 Protection 6 | . . . . . 1 . . . . . 1 . . 4 . Artifact . | . . . . . . . . . . . . . . . . Weapon 44 | 2 . 1 5 2 3 6 3 8 . 1 . . 1 2 10 Energy Gun 7 | 2 . 1 2 . . . . . . 1 . . . . 1 Energy Cannon 2 | . . . . . . . . . . . . . . . 2 Ballistic Gun 3 | . . . 1 . . . . 2 . . . . . . . Ballistic Cannon . | . . . . . . . . . . . . . . . . Launcher 1 | . . . 1 . . . . . . . . . . . . Special Weapon 4 | . . . . . . 3 . . . . . . . . 1 Impact Weapon 18 | . . . . 2 3 3 3 4 . . . . 1 . 2 Slashing Weapon 5 | . . . 1 . . . . 2 . . . . . . 2 Piercing Weapon 4 | . . . . . . . . . . . . . . 2 2 Special Melee Weapon . | . . . . . . . . . . . . . . . . Unidentified Prototypes 22 | . . . . 1 1 3 . 1 . . 4 1 . . 11 Parts Lost 81 | . . . 6 . 2 12 7 30 . . . . 1 6 17 Power 14 | . . . 2 . . 2 1 6 . . . . . 1 2 Propulsion 39 | . . . 2 . 1 8 6 10 . . . . 1 3 8 Utility 19 | . . . 1 . 1 2 . 7 . . . . . 2 6 Weapon 9 | . . . 1 . . . . 7 . . . . . . 1 Highest Loss Streak 25 | . . . 4 . 1 6 3 25 . . . . 1 3 12 To Critical Strikes 1 | . . . . . . . . . . . . . . . 1 Average Slot Usage (%) 82 | . 100 100 87 67 71 79 81 71 94 94 93 94 89 91 80 Engine 5 | . 14 14 8 . . 2 5 5 9 5 5 5 4 1 . Core 1 | . . . . . 6 3 . . 1 5 5 5 1 . . Wheel 5 | . 28 28 17 . . . . . . . . . . . . Hover 13 | . . . . . 10 15 26 14 . . 18 29 26 28 18 Flight 8 | . . . 8 27 19 16 4 7 29 29 9 . . . . Device 6 | . 14 14 8 5 1 3 . 7 17 17 14 11 10 7 9 Storage 6 | . 14 14 14 9 1 7 7 2 . . 2 5 5 4 4 Processor 8 | . . . . 8 11 13 21 12 11 11 8 5 5 2 1 Hackware 3 | . . . . . . . . 1 5 5 8 11 14 14 19 Energy Gun 4 | . 28 28 15 . . . . . . . . . . . . Impact Weapon 9 | . . . . 12 15 13 14 14 11 11 11 11 11 12 3 Slashing Weapon 1 | . . . 3 1 . . . 1 5 5 5 5 5 4 3 Piercing Weapon 1 | . . . . . . . . . . . . . . 3 11 Peak Build Rating 138 | 7 7 15 16 27 74 48 46 76 81 86 84 84 90 122 138 Average Rating 49 | 4 7 8 12 17 51 38 41 53 77 81 80 83 88 105 109 On Entrance 48 | . 7 7 15 8 27 37 35 33 76 81 81 84 84 84 109 Naked Turns 9 | . . . . . . . . 9 . . . . . . . Heaviest Build 77 | 15 15 22 24 19 63 18 21 39 28 28 30 30 44 77 65 Greatest Support 80 | 32 32 32 20 12 26 35 42 60 43 31 63 78 63 80 79 Greatest Overweight (x) 3 | 2 . 1 3 1 3 . 1 1 . . 1 . 1 1 1 Average Overweight (x) . | . . . . . . . . . . . . . . . . Largest Inventory Capacity 8 | 8 8 8 8 8 8 8 8 8 5 5 5 5 5 5 5 Average Capacity 6 | 6 8 8 8 8 5 8 8 6 5 5 5 5 5 5 5 Most Carried 8 | 4 6 8 8 8 8 8 8 8 5 5 5 5 5 5 5 Average Carried 6 | 1 4 7 7 7 4 6 7 5 5 4 4 5 4 4 4 Final Capacity 8 | 8 8 8 8 8 8 8 8 5 5 5 5 5 5 5 5 Final Carried 8 | 2 6 8 8 8 8 6 8 5 5 5 5 5 5 5 5 Class Distribution -------------------- 19% | Mutant 16% | Commander-Gladiator 15% | Gladiator 12% | Scavenger-Mutant 10% | Hacker-Gladiator 9% | Hacker-Mutant 6% | Sprinter 5% | Scavenger-Gladiator 3% | Scavenger-Sprinter Dominant Class ---------------- Mutant | -10/Materials Mutant | -10/Mines Scavenger-Mutant | -10/Subcaves Gladiator | -8/Materials Scavenger-Gladiator | -7/Factory Gladiator | -7/Storage Commander-Gladiator | -7/Recycling Commander-Gladiator | -5/Factory Sprinter | -5/Upper Caves Sprinter | -5/Upper Caves Hacker-Mutant | -5/Zhirov Hacker-Mutant | -4/Proximity Caves Hacker-Mutant | -4/Factory Hacker-Gladiator | -3/Research Hacker-Gladiator | -3/Testing Resources | -11 -10 -10 -10 -8 -7 -7 -7 -5 -5 -5 -5 -4 -4 -3 -3 ----------- Run | Yrd Mat Min Sub Mat Fac Sto Rec Fac Upp Upp Zhi Pro Fac Res Tes Matter Collected 2127 | 270 . 57 68 16 294 165 155 406 87 40 35 122 10 115 287 Remotely 137 | 137 . . . . . . . . . . . . . . . Salvage Created 7135 | 171 . 51 218 16 1027 934 1832 937 180 . 109 160 60 274 1166 Parts 233 | 8 . 6 17 . 27 20 24 38 6 . . 4 7 11 65 Haulers Intercepted 6 | . . . . . . 4 . 1 . . . . . . 1 Recyclers Shooed 7 | . . . . . 3 1 3 . . . . . . . . Parts Field Recycled . | . . . . . . . . . . . . . . . . Retrieved Matter . | . . . . . . . . . . . . . . . . Parts Self-Destructed 29 | . . . 22 . . . . . 3 . . 4 . . . Prevented . | . . . . . . . . . . . . . . . . Kills | -11 -10 -10 -10 -8 -7 -7 -7 -5 -5 -5 -5 -4 -4 -3 -3 ------- Run | Yrd Mat Min Sub Mat Fac Sto Rec Fac Upp Upp Zhi Pro Fac Res Tes Combat Hostiles Destroyed 77 | . . 2 7 . 6 17 9 18 1 . . 1 . 5 11 Melee 41 | . . . . . 3 5 5 11 1 . . 1 . 5 10 Guns 10 | . . 2 7 . . . . 1 . . . . . . . AOE 1 | . . . . . . . . . . . . . . . 1 Classes Destroyed 19 | 2 . 1 2 1 3 2 3 . . . . . 1 . 4 Worker 7 | . . . . . 2 1 . 3 . . . . . . 1 Builder 8 | . . . . 1 2 . 1 1 . . . . . . 3 Tunneler 6 | 4 . 1 . . 1 . . . . . . . . . . Hauler 6 | . . . . . . 4 . 1 . . . . . . 1 Recycler 21 | 1 . . . . 9 1 9 1 . . . . . . . Mechanic 1 | . . . . . . . . . . . . . . . 1 Operator 3 | . . . . . . . . . . . . . 1 1 1 Watcher 6 | . . . . . 3 1 . . . . . . 1 1 . Swarmer 30 | . . 2 2 . 3 7 3 9 . . . . . 4 . Grunt 16 | . . . . . . 6 1 5 . . . . . . 4 Duelist 1 | . . . . . . . 1 . . . . . . . . Protector 1 | . . . . . . . 1 . . . . . . . . Researcher 3 | . . . . . . . . . . . . . . . 3 Sentry 10 | . . . 1 . 2 4 1 . . . . 1 . 1 . Specialist 3 | . . . . . . . . . . . . . . . 3 Hunter 3 | . . . . . . . 1 . . . . . . . 2 Programmer 8 | . . . . . 1 . 1 4 1 . . . . . 1 Striker 1 | . . . . . . . . . . . . . . . 1 Subdweller 4 | . . . 4 . . . . . . . . . . . . Packrat 2 | . . . . . . . . . 2 . . . . . . Best Kill Streak 11 | 5 . 2 2 1 7 11 6 10 3 . . 1 2 3 5 Combat Bots Only 10 | . . 2 2 . 3 7 5 10 1 . . 1 . 2 4 Max Kills in Single Turn 3 | 1 . 1 1 1 1 2 1 3 1 . . 1 1 1 3 Gunslinging . | . . . . . . . . . . . . . . . . Exploded 1 | . . . . . . . . . . . . . . . 1 Melee 3 | . . . . . 1 2 1 3 1 . . 1 . 1 1 Uniques/NPCs Destroyed . | . . . . . . . . . . . . . . . . Combat | -11 -10 -10 -10 -8 -7 -7 -7 -5 -5 -5 -5 -4 -4 -3 -3 -------- Run | Yrd Mat Min Sub Mat Fac Sto Rec Fac Upp Upp Zhi Pro Fac Res Tes Hostile Shots Fired 1147 | . 7 6 38 6 76 309 121 182 13 3 . 8 16 94 268 Missed 496 | . 1 2 13 4 20 164 51 54 5 3 . 5 4 39 131 Damage Taken 10013 | . 68 39 545 29 604 1411 660 2416 102 . . 50 209 1190 2690 Core 2930 | . 34 20 115 . 90 403 136 819 25 . . . 18 264 1006 Absorbed by Shields 223 | . . . . . . 20 . 9 36 . . 18 77 63 . Ignored by Resistances 11 | . . . . . . . . . . . . . . . 11 Regen/Repaired (Parts) 85 | . . . . . . . . . . . . . . . 85 Core Remaining (%) 59 | 100 . . 32 100 . . 10 . . . . 15 98 . . Volleys Fired 59 | 9 3 8 25 . . . . 10 . . . . . . 4 Largest 2 | 2 2 2 2 . . . . 2 . . . . . . 1 Hottest 200 | 100 100 100 131 . . . . 46 . . . . . . 200 Shots Fired 115 | 18 6 16 52 . . . . 19 . . . . . . 4 Gun 112 | 18 6 16 52 . . . . 19 . . . . . . 1 Cannon 2 | . . . . . . . . . . . . . . . 2 Launcher . | . . . . . . . . . . . . . . . . Special 1 | . . . . . . . . . . . . . . . 1 Kinetic 38 | . . . 19 . . . . 19 . . . . . . . Thermal 75 | 18 6 16 33 . . . . . . . . . . . 2 Explosive . | . . . . . . . . . . . . . . . . Electromagnetic 1 | . . . . . . . . . . . . . . . 1 Robot Hit Streak 11 | 6 5 2 11 . . . . 7 . . . . . . 5 Robot Miss Streak 3 | 2 2 3 2 . . . . 2 . . . . . . . Penetration Max . | . . . . . . . . . . . . . . . . Secondary Targets 1 | . . . . . . . . 1 . . . . . . . Max Gunslinging Chain 1 | . . . . . . . . 1 . . . . . . . Shots Hit Robots 319 | 11 2 6 39 2 31 40 43 65 5 . 1 3 5 20 46 Core Hits 97 | 6 . 3 13 . 8 4 11 15 1 . 1 2 2 8 23 Critical Kills 10 | . . . . . 4 . 4 2 . . . . . . . Critical Parts Destroyed 41 | . . . . . 10 10 8 13 . . . . . . . Critical Strikes 68 | 1 1 1 3 . 15 11 13 16 . . . 1 1 3 2 Burn 6 | 1 1 1 3 . . . . . . . . . . . . Smash 54 | . . . . . 15 11 13 15 . . . . . . . Sever 4 | . . . . . . . . 1 . . . 1 1 1 . Impale 4 | . . . . . . . . . . . . . . 2 2 Melee Attacks 423 | . . . 2 5 53 53 54 76 9 . 2 5 8 50 106 Impact 263 | . . . . 3 53 53 54 61 2 . 1 1 2 16 17 Slashing 71 | . . . 2 2 . . . 15 7 . 1 4 6 17 17 Piercing 89 | . . . . . . . . . . . . . . 17 72 Sneak Attacks 62 | . . . . 1 14 8 12 7 2 . . . 2 1 15 Combat Hostiles 14 | . . . . . . 2 4 . . . . . . . 8 Follow-up Attacks 77 | . . . . . 6 6 2 17 1 . . . 1 14 30 Damage Inflicted 18470 | 140 25 89 769 157 2326 2611 3508 2896 274 . 87 183 270 912 4223 Guns 1312 | 140 25 89 769 . . . . 289 . . . . . . . Cannons 315 | . . . . . . . . . . . . . . . 315 Explosions 472 | . . . . . . . . . . . . . . . 472 Melee 16363 | . . . . 157 2326 2611 3508 2599 274 . 87 183 270 912 3436 Ramming 8 | . . . . . . . . 8 . . . . . . . Kinetic 627 | . . . 338 . . . . 289 . . . . . . . Thermal 1472 | 140 25 89 431 . . . . . . . . . . . 787 Explosive . | . . . . . . . . . . . . . . . . Electromagnetic . | . . . . . . . . . . . . . . . . Impact 11139 | . . . . 157 2326 2611 3508 2133 37 . . . 42 245 80 Slashing 1620 | . . . . . . . . 466 237 . 87 183 228 261 158 Piercing 3604 | . . . . . . . . . . . . . . 406 3198 Highest Corruption 15 | . 1 1 1 . 1 1 2 15 13 13 13 13 . . 9 Average Corruption 3 | . 1 1 1 . 1 1 1 7 13 13 13 13 . . 3 Corruption Purged 3 | . . . . . . . . 3 . . . . . . . Corruption Blocked 1 | . . . . . . . . 1 . . . . . . . Effects 60 | . . 3 10 . 2 4 9 11 6 2 3 4 . . 6 Message Errors 12 | . . 1 3 . 1 2 1 3 . . . . . . 1 Matter Fused 21 | . . 1 3 . . 1 2 3 2 2 2 1 . . 4 Heat Flow Errors 10 | . . 1 1 . . . 2 1 2 . . 2 . . 1 Energy Discharges 3 | . . . 1 . . . . 2 . . . . . . . Parts Rejected 1 | . . . . . . 1 . . . . . . . . . Data Loss (minor) 8 | . . . . . 1 . 2 2 2 . 1 . . . . Data Loss (major) 2 | . . . . . . . 1 . . . . 1 . . . Misfires 2 | . . . 2 . . . . . . . . . . . . Alerts 1 | . . . . . . . 1 . . . . . . . . Overload Shots . | . . . . . . . . . . . . . . . . Overflow Damage 6157 | . . . . 78 1227 1250 1611 962 140 . . 60 62 237 530 Projectiles 145 | . . . . . . . 59 . . . . . . . 86 Explosions 98 | . . . . . . . . . . . . . . . 98 Melee 5914 | . . . . 78 1227 1250 1552 962 140 . . 60 62 237 346 Knockbacks 43 | . . . . 1 12 4 10 14 1 . . . . 1 . Impact 39 | . . . . 1 12 3 9 12 1 . . . . 1 . Kinetic . | . . . . . . . . . . . . . . . . Secondary 4 | . . . . . . 1 1 2 . . . . . . . Self-Inflicted Damage 154 | . . . . . . . . 4 . . . . . . 150 Shots 2 | . . . . . . . . . . . . . . . 2 Rammed 3 | . . . . . . . . 3 . . . . . . . Targets Rammed 3 | . . . . . . . . 3 . . . . . . . Kicked . | . . . . . . . . . . . . . . . . Crushed . | . . . . . . . . . . . . . . . . Highest Temperature 339 | 273 39 194 209 . 3 5 274 118 179 2 . 236 . 339 281 Average Temperature 91 | 127 16 37 71 . 2 3 117 56 95 2 . 99 . 108 126 Received Heat Transfer 1645 | . 36 15 120 18 90 354 162 345 . . . 6 36 397 66 Effects 2 | . . . . . . . . . . . . 1 . . 1 Energy Bleed 2 | . . . . . . . . . . . . 1 . . 1 Siege Activations . | . . . . . . . . . . . . . . . . Robots Corrupted 50 | . . . . 1 12 17 13 6 . . . . . 1 . Combat Hostiles 26 | . . . . . 3 12 5 6 . . . . . . . Parts Fried 72 | . . . . 1 19 21 26 4 . . . . . 1 . Impact Corruptions 149 | . . . . 3 38 32 52 22 . . . . . 2 . Robots Melted . | . . . . . . . . . . . . . . . . Combat Hostiles . | . . . . . . . . . . . . . . . . Parts Melted 10 | 1 . 1 7 . . . . . . . . . . . 1 Heat Transferred 2695 | 481 148 333 1073 . . . . . . . . . . . 660 Parts Sabotaged . | . . . . . . . . . . . . . . . . Parts Stolen . | . . . . . . . . . . . . . . . . Parts Stripped . | . . . . . . . . . . . . . . . . Power Chain Reactions . | . . . . . . . . . . . . . . . . Alert | -11 -10 -10 -10 -8 -7 -7 -7 -5 -5 -5 -5 -4 -4 -3 -3 ------- Run | Yrd Mat Min Sub Mat Fac Sto Rec Fac Upp Upp Zhi Pro Fac Res Tes Peak Influence 670 | 25 16 50 . 51 206 670 446 491 . . . . 431 409 518 Initial 455 | . 16 6 . . 23 25 206 455 . . . . 344 220 130 Average 244 | 5 16 35 . 10 72 410 308 365 . . . . 384 294 282 Maximum Alert Level 2 | . . . . . 1 2 2 2 . . . . 2 2 2 Low Security (%) 35 | 100 100 100 . 100 95 18 . . . . . . . . 30 Level 1 48 | . . . . . 4 25 93 56 . . . . 59 90 53 Level 2 16 | . . . . . . 56 6 43 . . . . 40 9 15 Level 3 . | . . . . . . . . . . . . . . . . Level 4 . | . . . . . . . . . . . . . . . . Level 5 . | . . . . . . . . . . . . . . . . High Security . | . . . . . . . . . . . . . . . . Max Security . | . . . . . . . . . . . . . . . . Squads Dispatched 15 | . . . . . 3 2 . 6 . . . . . . 4 Investigation 6 | . . . . . 1 1 . 2 . . . . . . 2 Extermination 6 | . . . . . 2 . . 3 . . . . . . 1 Reinforcement 3 | . . . . . . 1 . 1 . . . . . . 1 Assault . | . . . . . . . . . . . . . . . . Garrison . | . . . . . . . . . . . . . . . . Intercept . | . . . . . . . . . . . . . . . . Searches Triggered 2 | . . . . . . . . 1 . . . . . 1 . Construction Impeded . | . . . . . . . . . . . . . . . . Haulers Reinforced . | . . . . . . . . . . . . . . . . Active Scanning Responses . | . . . . . . . . . . . . . . . . Cargo Convoy Interrupts 1 | . . . . . . . . 1 . . . . . . . Stealth | -11 -10 -10 -10 -8 -7 -7 -7 -5 -5 -5 -5 -4 -4 -3 -3 --------- Run | Yrd Mat Min Sub Mat Fac Sto Rec Fac Upp Upp Zhi Pro Fac Res Tes Distress Signals 4 | . . . . 1 1 . . . . . . . . 1 1 Communications Jammed . | . . . . . . . . . . . . . . . . Distress Signals . | . . . . . . . . . . . . . . . . Times Spotted 192 | . 3 4 9 8 12 30 11 30 10 3 . 6 3 24 39 Peak Tracking Total 16 | . 3 2 2 7 3 10 4 8 9 3 . 4 3 9 16 Tactical Retreats 27 | . . 1 . 1 1 4 1 4 1 1 . 2 2 4 5 Traps | -11 -10 -10 -10 -8 -7 -7 -7 -5 -5 -5 -5 -4 -4 -3 -3 ------- Run | Yrd Mat Min Sub Mat Fac Sto Rec Fac Upp Upp Zhi Pro Fac Res Tes Traps Triggered 8 | . 1 . . . 2 1 . . . . . . 1 . 3 Indirectly . | . . . . . . . . . . . . . . . . Trap Hack Attempts . | . . . . . . . . . . . . . . . . Triggered . | . . . . . . . . . . . . . . . . Disarmed . | . . . . . . . . . . . . . . . . Reprogrammed . | . . . . . . . . . . . . . . . . Reused . | . . . . . . . . . . . . . . . . Traps Extracted . | . . . . . . . . . . . . . . . . Installed . | . . . . . . . . . . . . . . . . Triggered 3 | . . . 1 . . . . 2 . . . . . . . Machines | -11 -10 -10 -10 -8 -7 -7 -7 -5 -5 -5 -5 -4 -4 -3 -3 ---------- Run | Yrd Mat Min Sub Mat Fac Sto Rec Fac Upp Upp Zhi Pro Fac Res Tes Machines Disabled 12 | . . . 1 . . 5 . . . . . 1 . . 5 Max in Single Turn 2 | . . . 1 . . 1 . . . . . 1 . . 2 Garrison Access 1 | . . . . . . . . . . . . . . 1 . Machines Repaired . | . . . . . . . . . . . . . . . . Machines Dismantled 1 | . . . . . . 1 . . . . . . . . . Machines Sabotaged . | . . . . . . . . . . . . . . . . Overloaded Fab Kills . | . . . . . . . . . . . . . . . . Hacking | -11 -10 -10 -10 -8 -7 -7 -7 -5 -5 -5 -5 -4 -4 -3 -3 --------- Run | Yrd Mat Min Sub Mat Fac Sto Rec Fac Upp Upp Zhi Pro Fac Res Tes Machines Accessed 52 | . . . 1 . 2 7 10 5 1 . 8 2 . 4 12 Terminals 27 | . . . . . 1 7 4 4 . . . 1 . 3 7 Fabricators 3 | . . . . . . . . 1 . . . . . . 2 Repair Stations 1 | . . . . . . . . . . . . . . . 1 Recycling Units 7 | . . . . . 1 . 6 . . . . . . . . Scanalyzers 1 | . . . . . . . . . . . . . . . 1 Garrison Access 2 | . . . . . . . . . . . . . . 1 1 Total Hacks 158 | . . . 9 . 3 14 24 8 1 . 47 2 . 11 39 Successful 93 | . . . 9 . 1 6 8 1 1 . 47 2 . 5 13 Failed 65 | . . . . . 2 8 16 7 . . . . . 6 26 Catastrophic 17 | . . . . . 1 3 5 1 . . . . . 2 5 Database Lockouts . | . . . . . . . . . . . . . . . . Manual 24 | . . . . . . 3 5 2 . . . . . 7 7 Terminals 64 | . . . . . 1 14 10 6 . . . 1 . 8 24 Fabricators 8 | . . . . . . . . 2 . . . . . . 6 Repair Stations 6 | . . . . . . . . . . . . . . . 6 Recycling Units 16 | . . . . . 2 . 14 . . . . . . . . Scanalyzers 1 | . . . . . . . . . . . . . . . 1 Garrison Access 5 | . . . . . . . . . . . . . . 3 2 Terminal Hacks 74 | . . . 9 . . 5 1 1 1 . 47 2 . 2 6 Record 45 | . . . 8 . . . . . . . 35 2 . . . Part Schematic 4 | . . . . . . . . . . . 4 . . . . Robot Analysis 4 | . . . . . . . . . . . 4 . . . . Prototype ID Bank 4 | . . . . . . . . . . . 4 . . . . Open Door 4 | . . . . . . 3 . . 1 . . . . . . Open DSF 1 | . . . . . . . . 1 . . . . . . . Level Access Points 1 | . . . . . . 1 . . . . . . . . . Branch Access Points 3 | . . . . . . . 1 . . . . . . 1 1 Alert Level 3 | . . . . . . 1 . . . . . . . . 2 Unreport Threat 3 | . . . . . . . . . . . . . . 1 2 Recall Reinforcements 1 | . . . . . . . . . . . . . . . 1 Derelict Proto ID Bank 1 | . . . 1 . . . . . . . . . . . . Fabricator Hacks . | . . . . . . . . . . . . . . . . Repair Station Hacks 3 | . . . . . . . . . . . . . . . 3 Scan Component 2 | . . . . . . . . . . . . . . . 2 Repair 1 | . . . . . . . . . . . . . . . 1 Recycling Unit Hacks 4 | . . . . . 1 . 3 . . . . . . . . Retrieve Components 4 | . . . . . 1 . 3 . . . . . . . . Scanalyzer . | . . . . . . . . . . . . . . . . Garrison Access Hacks 1 | . . . . . . . . . . . . . . 1 . Seal Access 1 | . . . . . . . . . . . . . . 1 . Unauthorized Hacks 11 | . . . . . . 1 4 . . . . . . 2 4 Terminals 4 | . . . . . . 1 . . . . . . . 2 1 Botnet 4 | . . . . . . 1 . . . . . . . 2 1 Fabricators 2 | . . . . . . . . . . . . . . . 2 Liberate 1 | . . . . . . . . . . . . . . . 1 Fabnet 1 | . . . . . . . . . . . . . . . 1 Repair Stations . | . . . . . . . . . . . . . . . . Recycling Units 4 | . . . . . . . 4 . . . . . . . . Tunnel 4 | . . . . . . . 4 . . . . . . . . Scanalyzers 1 | . . . . . . . . . . . . . . . 1 Researchers 1 | . . . . . . . . . . . . . . . 1 Garrison Access . | . . . . . . . . . . . . . . . . Data Cores Recovered 2 | . . . . . . . . . . . . . 1 1 . Used . | . . . . . . . . . . . . . . . . Hacking Detections 34 | . . . . . 2 6 8 4 . . . . . 3 11 Full Trace Events 7 | . . . . . . 1 3 2 . . . . . . 1 Feedback Events 1 | . . . . . . . . 1 . . . . . . . Corruption 1 | . . . . . . . . 1 . . . . . . . Feedback Blocked . | . . . . . . . . . . . . . . . . Robot Schematics Acquired 4 | . . . . . . . . . . . . . . . 4 Robots Built . | . . . . . . . . . . . . . . . . Authchips . | . . . . . . . . . . . . . . . . Time . | . . . . . . . . . . . . . . . . Total Robot Build Rating . | . . . . . . . . . . . . . . . . Part Schematics Acquired 8 | . . . . . . . . . . . 4 . . . 4 Parts Built . | . . . . . . . . . . . . . . . . Authchips . | . . . . . . . . . . . . . . . . Time . | . . . . . . . . . . . . . . . . Total Part Build Rating . | . . . . . . . . . . . . . . . . Parts Repaired 1 | . . . . . . . . . . . . . . . 1 Time 56 | . . . . . . . . . . . . . . . 56 Parts Recycled . | . . . . . . . . . . . . . . . . Recycled Matter . | . . . . . . . . . . . . . . . . Retrieved Matter . | . . . . . . . . . . . . . . . . Retrieved Components 14 | . . . . . 10 . 4 . . . . . . . . Parts Scanalyzed . | . . . . . . . . . . . . . . . . Part Schematics Acquired . | . . . . . . . . . . . . . . . . Parts Damaged . | . . . . . . . . . . . . . . . . Bothacking | -11 -10 -10 -10 -8 -7 -7 -7 -5 -5 -5 -5 -4 -4 -3 -3 ------------ Run | Yrd Mat Min Sub Mat Fac Sto Rec Fac Upp Upp Zhi Pro Fac Res Tes Used RIF Installer . | . . . . . . . . . . . . . . . . Robots Hacked . | . . . . . . . . . . . . . . . . Non-combat . | . . . . . . . . . . . . . . . . Combat . | . . . . . . . . . . . . . . . . Robot Hacks Applied . | . . . . . . . . . . . . . . . . Relay Couplers Released . | . . . . . . . . . . . . . . . . Fabnet Peak Effective % . | . . . . . . . . . . . . . . . . Robots Rewired 17 | . . . . . . . 17 . . . . . . . . Allies Hacked 1 | . . . . . . . . 1 . . . . . . . Hacks Repelled . | . . . . . . . . . . . . . . . . Allies | -11 -10 -10 -10 -8 -7 -7 -7 -5 -5 -5 -5 -4 -4 -3 -3 -------- Run | Yrd Mat Min Sub Mat Fac Sto Rec Fac Upp Upp Zhi Pro Fac Res Tes Total Allies 19 | . . . . . . 2 17 . . . . . . . . Largest Group 17 | . . . . . . 2 17 16 . . . . . . . Highest-Rated Group 292 | . . . . . . 62 292 282 . . . . . . . Highest-Rated Ally 40 | . . . . . . 31 40 40 . . . . . . . Total Orders 7 | . . . . . . . 5 2 . . . . . . . GUARD 1 | . . . . . . . 1 . . . . . . . . DROP 1 | . . . . . . . 1 . . . . . . . . PICKUP 4 | . . . . . . . 3 1 . . . . . . . COLLECT 1 | . . . . . . . . 1 . . . . . . . Ally Attacks 79 | . . . . . . 5 37 37 . . . . . . . Total Damage 1073 | . . . . . . 85 418 570 . . . . . . . Kills 5 | . . . . . . . 2 3 . . . . . . . Allies Corrupted 1 | . . . . . . . . 1 . . . . . . . Allies Melted . | . . . . . . . . . . . . . . . . Intel | -11 -10 -10 -10 -8 -7 -7 -7 -5 -5 -5 -5 -4 -4 -3 -3 ------- Run | Yrd Mat Min Sub Mat Fac Sto Rec Fac Upp Upp Zhi Pro Fac Res Tes Robot Analysis Total 4 | . . . . . . . . . . . 4 . . . . Derelict Logs Recovered 8 | . . 1 3 . . . . . 2 1 . 1 . . . Drone Launches . | . . . . . . . . . . . . . . . . Drone Recoveries . | . . . . . . . . . . . . . . . . Exploration | -11 -10 -10 -10 -8 -7 -7 -7 -5 -5 -5 -5 -4 -4 -3 -3 ------------- Run | Yrd Mat Min Sub Mat Fac Sto Rec Fac Upp Upp Zhi Pro Fac Res Tes Turns Passed 6697 | 86 68 486 1089 114 802 423 1234 794 138 70 120 141 111 300 721 Spaces Moved 7503 | 48 52 332 958 175 671 504 1031 897 472 240 214 336 209 486 878 Core 95 | 23 . . 2 . . . . 16 . . . . . . 54 Treads . | . . . . . . . . . . . . . . . . Legs . | . . . . . . . . . . . . . . . . Wheels 1116 | 25 52 332 707 . . . . . . . . . . . . Hover 3955 | . . . . . 341 378 1031 499 . . 94 336 209 486 581 Flight 2337 | . . . 249 175 330 126 . 382 472 240 120 . . . 243 Fastest Speed 12 | 50 100 80 80 34 24 24 40 25 12 25 25 24 38 21 25 Average Speed 54 | 90 100 84 99 45 91 39 48 42 24 25 31 37 38 35 40 Slowest Speed 231 | 150 100 100 200 114 231 51 150 150 25 25 100 38 90 90 100 Overloaded Moves 224 | . . . . . . 42 . . 25 . . 13 . 113 31 Propulsion Burnouts . | . . . . . . . . . . . . . . . . Robots Hopped 7 | . . . . 4 1 1 . 1 . . . . . . . Cave-ins Triggered . | . . . . . . . . . . . . . . . . Teleports 1 | . . . . . . . . . . . . . . . 1 Exploration Rate (%) 45 | 5 21 73 59 18 26 66 95 18 64 44 62 59 5 18 91 Regions Visited 15 Branch Regions 9 Pre-discovered Areas 11 | . . . 1 . . . 4 . 1 1 3 1 . . . Known Exits Taken 6 | . . . . 1 1 1 1 . . . . . 1 1 . Unknown Exits Taken 9 | 1 1 1 1 . . . . 1 1 1 1 1 . . . Scrap Searched 4 | . . . . . . . . . 2 2 . . . . . Spaces Dug 23 | . . . . 1 3 1 . . 1 . . . . 5 12 Terrain Destroyed 42 | . . . . 1 3 1 . . 1 . . . . 5 31 Melee 23 | . . . . 1 3 1 . . 1 . . . . 5 12 Projectile . | . . . . . . . . . . . . . . . . AOE 19 | . . . . . . . . . . . . . . . 19 Terrain Rammed . | . . . . . . . . . . . . . . . . Walls Destroyed . | . . . . . . . . . . . . . . . . Machines Disabled . | . . . . . . . . . . . . . . . . Actions | -11 -10 -10 -10 -8 -7 -7 -7 -5 -5 -5 -5 -4 -4 -3 -3 --------- Run | Yrd Mat Min Sub Mat Fac Sto Rec Fac Upp Upp Zhi Pro Fac Res Tes Total 9394 | 72 61 522 1043 197 783 612 1687 1189 481 249 271 342 229 544 1112 Wait 908 | . 2 169 43 . 12 15 396 152 . . 20 . . . 99 Move 7475 | 47 51 331 957 167 668 501 1030 894 471 239 213 335 208 485 878 Hop 6 | . . . . 3 1 1 . 1 . . . . . . . Pick Up 128 | 9 4 5 5 9 15 7 10 26 . 3 11 . 2 5 17 Fast Attach 68 | . . . . 2 4 1 4 20 . 1 5 2 4 10 15 Attach 88 | 7 . . 4 4 11 10 6 21 . . 6 . . 3 16 Detach 9 | . . . . . 1 1 1 . . . . . . . 6 Swap 38 | . 1 4 4 1 6 8 4 2 2 2 . . 1 2 1 Drop 97 | . . 5 3 6 7 . 7 9 1 4 15 1 5 9 25 Fire 59 | 9 3 8 25 . . . . 10 . . . . . . 4 Melee 288 | . . . 2 5 40 46 45 51 7 . 1 4 6 30 51 Ram 3 | . . . . . . . . 3 . . . . . . . Kick . | . . . . . . . . . . . . . . . . Crush . | . . . . . . . . . . . . . . . . Escape Stasis 31 | . . . . . 18 10 . . . . . . 3 . . Rewire 184 | . . . . . . . 184 . . . . . . . . Trap . | . . . . . . . . . . . . . . . . Miscellaneous 12 | . . . . . . 12 . . . . . . . . . Route ------- -11/Scrapyard -10/Materials -10/Mines (discovered 2 exits: [*Mat] / *Sub) -10/Subcaves -8/Materials -7/Factory -7/Storage (discovered 2 exits: *Fac / *Rec) -7/Recycling -5/Factory -5/Upper Caves -5/Upper Caves -5/Zhirov -4/Proximity Caves -4/Factory (discovered 2 exits: *Res x2) -3/Research (discovered 2 exits: *Tes x2) -3/Testing (discovered 1 exit: [*Res]) History --------- Turn | Location | Event 8 | -11/Scrapyard | Discovered new exit (range 16) 87 | -11/Scrapyard | Entered Materials 145 | -10/Materials | Discovered new exit (range 7) 155 | -10/Materials | Entered Mines 206 | -10/Mines | Discovered new exit (range 8) 207 | -10/Mines | Learned Materials terminal intel 310 | -10/Mines | Build established: Mutant 639 | -10/Mines | Discovered new exit (range 3) 641 | -10/Mines | Entered Subcaves 713 | -10/Subcaves | Learned location of Zion (-6) 865 | -10/Subcaves | Build established: Scavenger-Mutant 942 | -10/Subcaves | Learned Materials terminal intel 1024 | -10/Subcaves | Learned Materials stockpile data 1311 | -10/Subcaves | Core integrity fell below 50% 1362 | -10/Subcaves | Lost 4 parts (1p1n1u1w) 1463 | -10/Subcaves | Visited 4L-MR0's lab 1485 | -10/Subcaves | Found Tower Shield 1563 | -10/Subcaves | Shifting Twisted Machinery released Scrap Shield 1569 | -10/Subcaves | Discovered new exit (range 10) 1572 | -10/Subcaves | Shifting Twisted Machinery released Spk. Treads 1730 | -10/Subcaves | Entered Materials 1730 | -8/Materials | Evolved 4 slots: Power x1, Propulsion x1, Utility x2 1732 | -8/Materials | Loaded intel: 12 terminal locations 1824 | -8/Materials | Discovered new exit (range 10) 1842 | -8/Materials | Identified exit to Factory 1844 | -8/Materials | Entered Factory 1844 | -7/Factory | Evolved 2 slots: Propulsion x2 1974 | -7/Factory | Attached Tower Shield, gained temporary slots: Power, Propulsion x2, Utility x2, Weapon x2 2548 | -7/Factory | Build established: Scavenger-Gladiator 2636 | -7/Factory | Discovered new exit (range 7) 2644 | -7/Factory | Identified exit to Storage 2646 | -7/Factory | Entered Storage 2729 | -7/Storage | Lost 3 parts (3n) 2760 | -7/Storage | Identified exit to Factory 2879 | -7/Storage | Core integrity fell below 50% 2914 | -7/Storage | Lost 6 parts (2p3n1u) 2916 | -7/Storage | Destroyed 7 combat bots 2927 | -7/Storage | Met a pair of Derelict thieves 3065 | -7/Storage | Discovered new exit (range 4) 3068 | -7/Storage | Identified exit to Recycling 3069 | -7/Storage | Entered Recycling 3070 | -7/Recycling | Met a Zionite searching for Scraptown 3473 | -7/Recycling | Build established: Gladiator 3835 | -7/Recycling | Build established: Commander-Gladiator 4201 | -7/Recycling | Discovered new exit (range 16) 4207 | -7/Recycling | Core integrity fell below 20% 4239 | -7/Recycling | Lost 3 parts (3n) 4242 | -7/Recycling | Identified exit to Factory 4303 | -7/Recycling | Entered Factory 4303 | -5/Factory | Accompanied by 16 allies 4303 | -5/Factory | Evolved 4 slots: Utility x2, Weapon x2 4603 | -5/Factory | Search patrols dispatched 4603 | -5/Factory | P-70 Sage assimilated allied Angel 4a 4619 | -5/Factory | P-70 Sage assimilated allied Virus 4d 4668 | -5/Factory | Lost 13 allies 4863 | -5/Factory | Destroyed 10 combat bots 4880 | -5/Factory | System corruption reached 10% 4888 | -5/Factory | Core integrity fell below 50% 4920 | -5/Factory | Lost 25 parts (3p9n7u6w) 4950 | -5/Factory | Core integrity fell below 20% 5035 | -5/Factory | Cargo convoy interrupted 5089 | -5/Factory | Discovered new exit (range 10) 5097 | -5/Factory | Entered Upper Caves 5113 | -5/Upper Caves | Encountered a Warlord checkpoint 5195 | -5/Upper Caves | P-70 Sage assimilated allied NX-UAT(r) 5196 | -5/Upper Caves | Build established: Sprinter 5211 | -5/Upper Caves | Learned location of 1 exit from Factory 5220 | -5/Upper Caves | Discovered new exit (range 13) 5235 | -5/Upper Caves | Entered another Upper Caves area 5237 | -5/Upper Caves | Encountered a Warlord checkpoint 5303 | -5/Upper Caves | Discovered new exit (range 10) 5305 | -5/Upper Caves | Entered Zhirov 5305 | -5/Zhirov | Discovered new exit (range 3) 5310 | -5/Zhirov | Met Zhirov 5316 | -5/Zhirov | Learned location of Quarantine (-2) 5316 | -5/Zhirov | Learned location of Testing (-3) 5316 | -5/Zhirov | Learned location of Command (-1) 5320 | -5/Zhirov | Zhirov requested help retrieving the SGEMP Prototype 5326 | -5/Zhirov | Found Alien Artifact 5326 | -5/Zhirov | Identified Integrated Reactor 5326 | -5/Zhirov | Installed Integrated Reactor, increased core energy generation (+10) 5407 | -5/Zhirov | Found Alien Artifact 5425 | -5/Zhirov | Entered Proximity Caves 5434 | -4/Proximity Caves | Found Alien Artifact 5434 | -4/Proximity Caves | Identified Dimensional Node Initializer 5434 | -4/Proximity Caves | Initialized slip node 5457 | -4/Proximity Caves | Attracted the attention of an 0b10 checkpoint 5492 | -4/Proximity Caves | Spotted B-86 Titan 5523 | -4/Proximity Caves | Spotter reported a threat 5523 | -4/Proximity Caves | Spotter reported a threat 5562 | -4/Proximity Caves | Discovered new exit (range 10) 5566 | -4/Proximity Caves | Entered Factory 5566 | -4/Factory | Evolved 2 slots: Utility x1, Weapon x1 5567 | -4/Factory | Identified exit to Research 5623 | -4/Factory | Build established: Hacker-Mutant 5650 | -4/Factory | Discovered exit to Research (range 9) 5677 | -4/Factory | Entered Research 5677 | -3/Research | Evolved 2 slots: Propulsion x1, Utility x1 5859 | -3/Research | Spotted B-86 Titan 5865 | -3/Research | Lost 3 parts (1n2u) 5927 | -3/Research | Search patrols dispatched 5951 | -3/Research | Identified exit to Testing 5977 | -3/Research | Entered Testing 6028 | -3/Testing | Found Prototype Energy Cannon 6028 | -3/Testing | Identified Potential Cannon 6056 | -3/Testing | Found Prototype Device 6056 | -3/Testing | Identified Exp. Thermal Shield 6119 | -3/Testing | Repaired Broken Cld. Gravmag System 6119 | -3/Testing | Build established: Hacker-Gladiator 6202 | -3/Testing | Found Prototype Energy Gun 6202 | -3/Testing | Identified Tachyon Dispersion Ray 6483 | -3/Testing | Spotted Striker 6483 | -3/Testing | Spotted Striker 6531 | -3/Testing | Spotted Alpha 7 6543 | -3/Testing | Found Prototype Hackware 6543 | -3/Testing | Identified Ghost Barrier 6562 | -3/Testing | Destroyed Striker 6569 | -3/Testing | Identified Transdimensional Reconstructor 6569 | -3/Testing | Warped through subspace 6570 | -3/Testing | Core integrity fell below 50% 6611 | -3/Testing | Discovered new exit (range 9) 6623 | -3/Testing | Lost 12 parts (1p5n5u1w) 6623 | -3/Testing | Found Prototype Processor 6624 | -3/Testing | Identified Spectral Analyzer 6636 | -3/Testing | Core integrity fell below 20% 6672 | -3/Testing | Found Prototype Processor 6672 | -3/Testing | Identified Exp. Target Analyzer 6698 | -3/Testing | Destroyed by P-80 Master with Gamma Rifle Last Messages --------------- Establishing remote squad link... No tasked reinforcement squads found. ALERT: Suspicious activity at Terminal T006. Dispatching Investigation squad. Slug penetrates Wall. Penetrated by Slug. Slug penetrates Wall. Connecting with Terminal... Terminal disabled. O-32 Director: "IFF HANDSHAKE FAILED. SECURING TERMINAL." K-01 Serf cleans the Antimatter Diverter. W-44 Eye sends out distress signal. Acquired Prototype Processor. Identified Exp. Target Analyzer. Electron Diverter destroyed. Dropped Imp. Thermal Shield. Knocked back. JM YKCA,%XQ88P8P5QYCZOPVG PU#/= Exp. Energy Well destroyed. Map ----- +----------------------------------------------------+ | # # """ """ ##"" """" # """" # # | | # #####+###### ############## # | | #####/####### ##########+################ # | | " c ## | | "T cc #? | | ############# ########################### #? | | ????????????######?????????????????????????# #? | | ?????????????#?????????????????????????????# #? | | ??????##### #????????########???########### #? | | ###### #????????# #???# !# #? | | #????????# """#???# # # | | #???????????# T"#???# """" # # | | # # #???????????# """#???# """" + + | | # #????????????????# #???# """" # # | | # #???#######??????#! #???# """" # # | | # #???# """ #??????####+####### # #? | | # #???#""T""#?????????# + =# #? | | # #####""%""####??????# ######/#### #? | | # # ! =* | #??????# = ""#??### #### ## | | # # """" """" #??????# g ""#??# | | # # """" """" #??????# T"#??# | | # # """" """" #??????# !! ""#??# | | # """" """" #??????# !! ""#??# | | *#! #??????#* #??# ####+#### | | " %+=""" """" #???#### #### #???????? | | " #!""" """" #???# @ #???????? | | " # "S """" ##??# ##### #???????? | | # """ """" "#??# #???# """ #???????? | | # "" ##??#### #???# """ ""#???????? | | # #??????# #???# """ ""#???????? | | ##############?######/##### T#???????? | | #??????????????# p # """ ""#???????? | | #??????????????#| p""" # """ ""#???????? | | ##+#+############???# !! """ # """ ""#???????? | | #???# !! """ + #???????? | | #???# # """ #???????? | | " #???# """ """ # """ ######### | | """ """ #???# """ """ # """ | | """" " " #???# """ """ + | | "" " " #???# # """ " | | [ #???#"" ! """ + """ " | | #################???#"" """ # """ #### " | | #??????????????????#"T """ # #??# | | #??????????????????#"" # """ #### | | #??????????????????#"" # """ #### | | #??????????????????# # """ #??? | | #??????????????????############ #??? | | #?????????????????????????????# #??? | | #?????????????????????????????###########+#####?? | | #???????????????????????????????????# #?? | +----------------------------------------------------+ Best States ------------- Heat Dissipation 46 Coolant Potential 65 Energy Generation 45 Energy Capacity 1250 Matter Stores 300 Matter Capacity 300 Sight Range 24 Terrain Scan Density 10 Additional Mass Support 9 Base Temperature (-) 150 EM Shielding 4 Corruption Block 15 Armor Coverage 2000 Resistance: TH 25 Point Defense Rating 240 Evasion (%) 73 Melee Accuracy 6 Target Analysis 10 Core Analysis 6 Matter Filtering 50 Force Boost 30 Offensive Hacking 32 Defensive Hacking 46 Item Schematics ----------------- Assault Drone Bay | -5/Zhirov | Free Exp. Heat Sink | -5/Zhirov | Free Exp. Optical Array | -5/Zhirov | Free Imp. Arc Thrower | -5/Zhirov | Free Enh. Fission Core | -3/Testing | Archive Imp. Matter Compressor | -3/Testing | Archive Exp. Matter Compressor | -3/Testing | Archive Gravity Neutralizer | -3/Testing | Archive Robot Schematics ------------------ A-02 Transporter | -3/Testing | Archive K-01 Serf | -3/Testing | Archive A-27 Freighter | -3/Testing | Archive R-06 Scavenger | -3/Testing | Archive Fabricated ------------ Nothing Alien Tech Used ----------------- Integrated Reactor Dimensional Node Initializer Transdimensional Reconstructor Achievements -------------- Max Potential \\IAMDERELICT Challenges ------------ None Game ------ Seed StealthUltimateSegregator Manual? 0 Play Time 02:16:50 Cumulative 89.6 hours Start 2024.11.10 @ 21:53:44 End 2024.11.11 @ 00:14:13 Sessions 1 Manual Loads 0 Difficulty Rogue Special Mode None Game No. 49 Rogue 49 Adventurer 0 Explorer 0 Win Type - Total 2 Types 2/0/0/0/0/0/0/0/0 Lore% 21 Gallery% 54 Achievement% 49 Wizard Run 0 Options --------- Layout 1 ASCII 0 Keyboard 0 Movement Mouse Keybinds 0 Fullscreen 1 Font 24/Smallcaps Map View 50x35 Zoom Use 0% Tactical HUD 0 Map Filters NONE Filters NONE Steam 1 RUN: 0a691e35-526d-4bd6-b3ac-ab12ac149616